[Event "Titled Tuesday Blitz March 28 Early 2023"]
[White "polandchessplayer"]
[Black "Drygalov, Andrey"]
[BlackFideId "24171735"]
[WhiteElo "2698"]
[BlackElo "2471"]
[Result "0-1"]
[Round "05"]
[TimeControl "180+2"]
[Date "2023.03.28"]
[WhiteClock "0:00:08"]
[BlackClock "0:00:02"]

1. c4 {[%clk 0:03:00]}  Nf6 {[%clk 0:02:57]} 2. Nf3 {[%clk 0:03:00]}  e6 {[%clk 0:02:56]} 3. g3 {[%clk 0:02:55]}  d5 {[%clk 0:02:56]} 4. Bg2 {[%clk 0:02:51]}  dxc4 {[%clk 0:02:57]} 5. O-O {[%clk 0:02:50]}  c6 {[%clk 0:02:56]} 6. a4 {[%clk 0:02:49]}  Na6 {[%clk 0:02:37]} 7. Ne5 {[%clk 0:02:45]}  Be7 {[%clk 0:02:26]} 8. Nxc4 {[%clk 0:02:44]}  O-O {[%clk 0:02:26]} 9. b3 {[%clk 0:02:39]}  Nb4 {[%clk 0:02:20]} 10. Bb2 {[%clk 0:02:38]}  c5 {[%clk 0:02:15]} 11. Nba3 {[%clk 0:02:31]}  Nfd5 {[%clk 0:02:15]} 12. d4 {[%clk 0:02:20]}  Bf6 {[%clk 0:02:10]} 13. e4 {[%clk 0:02:12]}  Nb6 {[%clk 0:02:09]} 14. e5 {[%clk 0:02:11]}  Be7 {[%clk 0:02:09]} 15. Nb5 {[%clk 0:02:07]}  N6d5 {[%clk 0:02:04]} 16. Nbd6 {[%clk 0:02:02]}  cxd4 {[%clk 0:02:03]} 17. Bxd4 {[%clk 0:02:00]}  Nc6 {[%clk 0:02:03]} 18. Bb2 {[%clk 0:01:59]}  Ncb4 {[%clk 0:01:45]} 19. Qe2 {[%clk 0:01:59]}  b6 {[%clk 0:01:36]} 20. Rfd1 {[%clk 0:01:45]}  Ba6 {[%clk 0:01:29]} 21. Qg4 {[%clk 0:01:45]}  g6 {[%clk 0:01:18]} 22. Rac1 {[%clk 0:01:36]}  Bxd6 {[%clk 0:00:41]} 23. exd6 {[%clk 0:01:37]}  Bb7 {[%clk 0:00:40]} 24. h4 {[%clk 0:01:09]}  h5 {[%clk 0:00:37]} 25. Qd4 {[%clk 0:01:09]}  f6 {[%clk 0:00:37]} 26. Bh3 {[%clk 0:00:58]}  Qd7 {[%clk 0:00:33]} 27. Re1 {[%clk 0:00:58]}  Rae8 {[%clk 0:00:32]} 28. Qe4 {[%clk 0:00:47]}  Kf7 {[%clk 0:00:32]} 29. Qf3 {[%clk 0:00:42]}  Kg7 {[%clk 0:00:30]} 30. Qe2 {[%clk 0:00:35]}  Bc8 {[%clk 0:00:28]} 31. Qd2 {[%clk 0:00:26]}  Kh7 {[%clk 0:00:27]} 32. Ba3 {[%clk 0:00:25]}  a5 {[%clk 0:00:26]} 33. Bb2 {[%clk 0:00:25]}  Qf7 {[%clk 0:00:20]} 34. Rcd1 {[%clk 0:00:25]}  e5 {[%clk 0:00:20]} 35. Bg2 {[%clk 0:00:22]}  Be6 {[%clk 0:00:20]} 36. Bc1 {[%clk 0:00:20]}  Kg8 {[%clk 0:00:18]} 37. Ba3 {[%clk 0:00:17]}  Rd8 {[%clk 0:00:17]} 38. f4 {[%clk 0:00:17]}  exf4 {[%clk 0:00:17]} 39. Rxe6 {[%clk 0:00:17]}  Qxe6 {[%clk 0:00:17]} 40. Bxd5 {[%clk 0:00:18]}  Nxd5 {[%clk 0:00:17]} 41. Qxd5 {[%clk 0:00:19]}  Qxd5 {[%clk 0:00:17]} 42. Rxd5 {[%clk 0:00:20]}  fxg3 {[%clk 0:00:16]} 43. d7 {[%clk 0:00:20]}  Rf7 {[%clk 0:00:14]} 44. Nxb6 {[%clk 0:00:21]}  f5 {[%clk 0:00:13]} 45. Kg2 {[%clk 0:00:17]}  f4 {[%clk 0:00:13]} 46. Kf3 {[%clk 0:00:18]}  Rf6 {[%clk 0:00:07]} 47. Be7 {[%clk 0:00:14]}  Rxb6 {[%clk 0:00:07]} 48. Bxd8 {[%clk 0:00:14]}  Rxb3+ {[%clk 0:00:08]} 49. Kxf4 {[%clk 0:00:10]}  g2 {[%clk 0:00:08]} 50. Bb6 {[%clk 0:00:11]}  Rb4+ {[%clk 0:00:03]} 51. Kg5 {[%clk 0:00:08]}  Kg7 {[%clk 0:00:03]} 52. d8=Q {[%clk 0:00:08]}  Rg4# {[%clk 0:00:02]} 0-1


[Site "https://www.chess.com"]

[Event "Titled Tuesday Blitz March 28 Early 2023"]
[White "Durarbayli, Vasif"]
[Black "Subelj, Jan"]
[WhiteFideId "13402935"]
[BlackFideId "14618583"]
[WhiteElo "2543"]
[BlackElo "2474"]
[Result "0-1"]
[Round "05"]
[TimeControl "180+2"]
[Date "2023.03.28"]
[WhiteClock "0:00:06"]
[BlackClock "0:00:41"]

1. e4 {[%clk 0:03:00]}  Nc6 {[%clk 0:02:57]} 2. Nc3 {[%clk 0:02:57]}  e6 {[%clk 0:02:50]} 3. Nf3 {[%clk 0:02:41]}  d5 {[%clk 0:02:33]} 4. Bb5 {[%clk 0:02:39]}  Ne7 {[%clk 0:02:14]} 5. O-O {[%clk 0:02:31]}  a6 {[%clk 0:02:09]} 6. Bxc6+ {[%clk 0:02:25]}  Nxc6 {[%clk 0:02:10]} 7. d4 {[%clk 0:02:25]}  Be7 {[%clk 0:02:05]} 8. Bf4 {[%clk 0:02:05]}  O-O {[%clk 0:02:02]} 9. Qd3 {[%clk 0:01:59]}  Nb4 {[%clk 0:01:51]} 10. Qd2 {[%clk 0:01:53]}  b6 {[%clk 0:01:46]} 11. a3 {[%clk 0:01:38]}  dxe4 {[%clk 0:01:45]} 12. Nxe4 {[%clk 0:01:35]}  Nd5 {[%clk 0:01:45]} 13. Bg3 {[%clk 0:01:35]}  Bb7 {[%clk 0:01:44]} 14. Rfe1 {[%clk 0:01:22]}  h6 {[%clk 0:01:37]} 15. c4 {[%clk 0:01:13]}  Nf6 {[%clk 0:01:36]} 16. Nxf6+ {[%clk 0:01:13]}  Bxf6 {[%clk 0:01:37]} 17. Ne5 {[%clk 0:01:11]}  c5 {[%clk 0:01:30]} 18. Rad1 {[%clk 0:01:10]}  cxd4 {[%clk 0:01:30]} 19. Qxd4 {[%clk 0:01:00]}  Qxd4 {[%clk 0:01:30]} 20. Rxd4 {[%clk 0:01:01]}  Rfd8 {[%clk 0:01:30]} 21. Red1 {[%clk 0:00:58]}  Rxd4 {[%clk 0:01:29]} 22. Rxd4 {[%clk 0:00:58]}  Rd8 {[%clk 0:01:29]} 23. Rxd8+ {[%clk 0:00:50]}  Bxd8 {[%clk 0:01:30]} 24. b4 {[%clk 0:00:50]}  Be7 {[%clk 0:01:24]} 25. Nd7 {[%clk 0:00:34]}  a5 {[%clk 0:01:24]} 26. b5 {[%clk 0:00:29]}  Bd8 {[%clk 0:01:11]} 27. c5 {[%clk 0:00:19]}  bxc5 {[%clk 0:01:04]} 28. Nxc5 {[%clk 0:00:20]}  Bd5 {[%clk 0:01:04]} 29. Bd6 {[%clk 0:00:20]}  f6 {[%clk 0:01:01]} 30. Na4 {[%clk 0:00:04]}  Kf7 {[%clk 0:00:58]} 31. Nc3 {[%clk 0:00:03]}  Bb7 {[%clk 0:00:57]} 32. f4 {[%clk 0:00:03]}  Ke8 {[%clk 0:00:57]} 33. Bc5 {[%clk 0:00:03]}  Kd7 {[%clk 0:00:54]} 34. Kf2 {[%clk 0:00:03]}  Bc7 {[%clk 0:00:53]} 35. g3 {[%clk 0:00:04]}  g5 {[%clk 0:00:52]} 36. Ke3 {[%clk 0:00:04]}  f5 {[%clk 0:00:47]} 37. a4 {[%clk 0:00:03]}  gxf4+ {[%clk 0:00:45]} 38. gxf4 {[%clk 0:00:03]}  e5 {[%clk 0:00:45]} 39. Ne2 {[%clk 0:00:02]}  Be4 {[%clk 0:00:44]} 40. b6 {[%clk 0:00:02]}  Bb8 {[%clk 0:00:44]} 41. fxe5 {[%clk 0:00:02]}  Bxe5 {[%clk 0:00:44]} 42. Ng3 {[%clk 0:00:03]}  Bc2 {[%clk 0:00:42]} 43. Kd2 {[%clk 0:00:02]}  Bb1 {[%clk 0:00:41]} 44. Bf2 {[%clk 0:00:01]}  Kc6 {[%clk 0:00:40]} 45. Kc1 {[%clk 0:00:01]}  Be4 {[%clk 0:00:39]} 46. Kd2 {[%clk 0:00:01]}  Bf4+ {[%clk 0:00:39]} 47. Kc3 {[%clk 0:00:01]}  Be5+ {[%clk 0:00:38]} 48. Bd4 {[%clk 0:00:02]}  Bxd4+ {[%clk 0:00:32]} 49. Kxd4 {[%clk 0:00:03]}  Kxb6 {[%clk 0:00:33]} 50. Nxe4 {[%clk 0:00:02]}  fxe4 {[%clk 0:00:33]} 51. Kxe4 {[%clk 0:00:03]}  Kc5 {[%clk 0:00:34]} 52. h4 {[%clk 0:00:02]}  Kb4 {[%clk 0:00:34]} 53. Kd4 {[%clk 0:00:03]}  Kxa4 {[%clk 0:00:35]} 54. Kc4 {[%clk 0:00:04]}  Ka3 {[%clk 0:00:35]} 55. Kc3 {[%clk 0:00:04]}  h5 {[%clk 0:00:35]} 56. Kc2 {[%clk 0:00:04]}  Kb4 {[%clk 0:00:35]} 57. Kb2 {[%clk 0:00:04]}  Kc4 {[%clk 0:00:35]} 58. Ka3 {[%clk 0:00:05]}  Kd4 {[%clk 0:00:36]} 59. Ka4 {[%clk 0:00:06]}  Ke4 {[%clk 0:00:37]} 60. Kxa5 {[%clk 0:00:07]}  Kf4 {[%clk 0:00:38]} 61. Kb4 {[%clk 0:00:07]}  Kg4 {[%clk 0:00:39]} 62. Kc3 {[%clk 0:00:08]}  Kxh4 {[%clk 0:00:40]} 63. Kd2 {[%clk 0:00:09]}  Kg3 {[%clk 0:00:41]} 64. Ke1 {[%clk 0:00:06]}  Kg2 {[%clk 0:00:41]} 0-1


[Site "https://www.chess.com"]

[Event "Titled Tuesday Blitz March 28 Early 2023"]
[White "Tregubov, Pavel V."]
[Black "Mitrabha, Guha"]
[WhiteFideId "4115341"]
[BlackFideId "5057000"]
[WhiteElo "2425"]
[BlackElo "2507"]
[Result "0-1"]
[Round "05"]
[TimeControl "180+2"]
[Date "2023.03.28"]
[WhiteClock "0:00:02"]
[BlackClock "0:00:14"]

1. e4 {[%clk 0:02:57]}  c6 {[%clk 0:02:57]} 2. Nf3 {[%clk 0:02:56]}  d5 {[%clk 0:02:58]} 3. Nc3 {[%clk 0:02:57]}  dxe4 {[%clk 0:02:58]} 4. Nxe4 {[%clk 0:02:57]}  Nf6 {[%clk 0:02:57]} 5. Qe2 {[%clk 0:02:57]}  Nxe4 {[%clk 0:02:57]} 6. Qxe4 {[%clk 0:02:57]}  Be6 {[%clk 0:02:58]} 7. Be2 {[%clk 0:02:37]}  Nd7 {[%clk 0:02:41]} 8. O-O {[%clk 0:02:36]}  Nf6 {[%clk 0:02:41]} 9. Qh4 {[%clk 0:02:33]}  Bf5 {[%clk 0:02:38]} 10. c3 {[%clk 0:02:22]}  e6 {[%clk 0:02:34]} 11. d4 {[%clk 0:01:55]}  Be7 {[%clk 0:02:33]} 12. Qg3 {[%clk 0:01:52]}  O-O {[%clk 0:02:26]} 13. Ne5 {[%clk 0:01:45]}  Ne4 {[%clk 0:02:17]} 14. Qe3 {[%clk 0:01:28]}  Nf6 {[%clk 0:02:12]} 15. h3 {[%clk 0:01:22]}  a5 {[%clk 0:02:05]} 16. a4 {[%clk 0:01:15]}  Nd5 {[%clk 0:01:33]} 17. Qg3 {[%clk 0:01:15]}  Nf6 {[%clk 0:01:33]} 18. Bh6 {[%clk 0:01:13]}  Bg6 {[%clk 0:01:32]} 19. Nxg6 {[%clk 0:01:09]}  hxg6 {[%clk 0:01:33]} 20. Bf4 {[%clk 0:01:07]}  Nd5 {[%clk 0:01:33]} 21. Bd2 {[%clk 0:01:03]}  Bf6 {[%clk 0:01:29]} 22. Rfe1 {[%clk 0:01:01]}  Qb6 {[%clk 0:01:24]} 23. Rab1 {[%clk 0:00:57]}  Rfd8 {[%clk 0:01:18]} 24. b3 {[%clk 0:00:55]}  c5 {[%clk 0:01:12]} 25. dxc5 {[%clk 0:00:49]}  Qxc5 {[%clk 0:01:10]} 26. Rec1 {[%clk 0:00:48]}  Rac8 {[%clk 0:01:07]} 27. Qg4 {[%clk 0:00:36]}  Bxc3 {[%clk 0:01:01]} 28. Bg5 {[%clk 0:00:28]}  Re8 {[%clk 0:00:58]} 29. Bf3 {[%clk 0:00:27]}  Qb4 {[%clk 0:00:50]} 30. Rd1 {[%clk 0:00:22]}  Qxg4 {[%clk 0:00:48]} 31. hxg4 {[%clk 0:00:22]}  Rc5 {[%clk 0:00:44]} 32. Rd3 {[%clk 0:00:17]}  Bf6 {[%clk 0:00:44]} 33. Bd2 {[%clk 0:00:16]}  b6 {[%clk 0:00:43]} 34. Rd1 {[%clk 0:00:15]}  g5 {[%clk 0:00:42]} 35. Bxd5 {[%clk 0:00:14]}  Rxd5 {[%clk 0:00:38]} 36. Rxd5 {[%clk 0:00:13]}  exd5 {[%clk 0:00:39]} 37. Kf1 {[%clk 0:00:13]}  d4 {[%clk 0:00:32]} 38. Rc1 {[%clk 0:00:12]}  d3 {[%clk 0:00:27]} 39. Be3 {[%clk 0:00:11]}  Re6 {[%clk 0:00:26]} 40. Ke1 {[%clk 0:00:08]}  Rd6 {[%clk 0:00:22]} 41. Kd2 {[%clk 0:00:07]}  Kh7 {[%clk 0:00:23]} 42. Rc7 {[%clk 0:00:05]}  Kg6 {[%clk 0:00:23]} 43. Rb7 {[%clk 0:00:03]}  Bd8 {[%clk 0:00:21]} 44. f3 {[%clk 0:00:03]}  Kf6 {[%clk 0:00:16]} 45. Bf2 {[%clk 0:00:02]}  Ke6 {[%clk 0:00:14]} 46. Bg3 {[%clk 0:00:02]}  Rd4 {[%clk 0:00:14]} 0-1


[Site "https://www.chess.com"]

[Event "Titled Tuesday Blitz March 28 Early 2023"]
[White "Ibarra Jerez, Jose Carlos"]
[Black "Cuenca Jimenez, Jose Fernando"]
[WhiteFideId "2226332"]
[BlackFideId "2255570"]
[WhiteElo "2638"]
[BlackElo "2429"]
[Result "1-0"]
[Round "05"]
[TimeControl "180+2"]
[Date "2023.03.28"]
[WhiteClock "0:01:05"]
[BlackClock "0:00:04"]

1. e4 {[%clk 0:03:00]}  c5 {[%clk 0:02:58]} 2. Ne2 {[%clk 0:02:57]}  Nc6 {[%clk 0:02:56]} 3. Nbc3 {[%clk 0:02:56]}  Nd4 {[%clk 0:02:56]} 4. Nxd4 {[%clk 0:02:49]}  cxd4 {[%clk 0:02:56]} 5. Ne2 {[%clk 0:02:49]}  e5 {[%clk 0:02:56]} 6. c3 {[%clk 0:02:49]}  d5 {[%clk 0:02:54]} 7. cxd4 {[%clk 0:02:45]}  exd4 {[%clk 0:02:45]} 8. e5 {[%clk 0:02:41]}  d3 {[%clk 0:02:29]} 9. Nf4 {[%clk 0:02:41]}  Ne7 {[%clk 0:01:55]} 10. Bxd3 {[%clk 0:02:38]}  Nc6 {[%clk 0:01:53]} 11. O-O {[%clk 0:02:35]}  Be7 {[%clk 0:01:46]} 12. e6 {[%clk 0:02:31]}  Bxe6 {[%clk 0:01:37]} 13. Nxe6 {[%clk 0:02:30]}  fxe6 {[%clk 0:01:38]} 14. Qh5+ {[%clk 0:02:26]}  Kd7 {[%clk 0:01:34]} 15. Re1 {[%clk 0:02:24]}  g6 {[%clk 0:01:01]} 16. Qh3 {[%clk 0:02:19]}  Qg8 {[%clk 0:01:00]} 17. b4 {[%clk 0:02:07]}  Bf6 {[%clk 0:00:57]} 18. Rb1 {[%clk 0:02:05]}  Re8 {[%clk 0:00:57]} 19. b5 {[%clk 0:02:02]}  Nd8 {[%clk 0:00:41]} 20. Ba3 {[%clk 0:01:52]}  Qf7 {[%clk 0:00:38]} 21. Qg3 {[%clk 0:01:39]}  e5 {[%clk 0:00:30]} 22. Be2 {[%clk 0:01:32]}  h5 {[%clk 0:00:29]} 23. Rbc1 {[%clk 0:01:30]}  Ne6 {[%clk 0:00:27]} 24. b6 {[%clk 0:01:26]}  a6 {[%clk 0:00:26]} 25. Qb3 {[%clk 0:01:23]}  Nd4 {[%clk 0:00:04]} 26. Rc7+ {[%clk 0:01:22]}  Ke6 {[%clk 0:00:05]} 27. Qxd5+ {[%clk 0:01:06]}  Kxd5 {[%clk 0:00:04]} 28. Bc4# {[%clk 0:01:05]} 1-0


[Site "https://www.chess.com"]

[Event "Titled Tuesday Blitz March 28 Early 2023"]
[White "Moroni, Luca Jr"]
[Black "Aveskulov, Valeriy"]
[WhiteFideId "865834"]
[BlackFideId "14109743"]
[WhiteElo "2569"]
[BlackElo "2552"]
[Result "1-0"]
[Round "05"]
[TimeControl "180+2"]
[Date "2023.03.28"]
[WhiteClock "0:00:04"]
[BlackClock "0:00:04"]

1. d4 {[%clk 0:03:00]}  Nf6 {[%clk 0:02:54]} 2. Bf4 {[%clk 0:02:59]}  d5 {[%clk 0:02:47]} 3. e3 {[%clk 0:02:51]}  c5 {[%clk 0:02:45]} 4. dxc5 {[%clk 0:02:52]}  Nc6 {[%clk 0:02:44]} 5. Bb5 {[%clk 0:02:51]}  e6 {[%clk 0:02:39]} 6. b4 {[%clk 0:02:50]}  Bd7 {[%clk 0:02:34]} 7. c3 {[%clk 0:02:50]}  Be7 {[%clk 0:02:19]} 8. Nf3 {[%clk 0:02:48]}  O-O {[%clk 0:02:19]} 9. Nbd2 {[%clk 0:02:47]}  b6 {[%clk 0:02:13]} 10. cxb6 {[%clk 0:02:41]}  Nxb4 {[%clk 0:02:08]} 11. Be2 {[%clk 0:02:29]}  Nc6 {[%clk 0:01:59]} 12. b7 {[%clk 0:02:28]}  Rb8 {[%clk 0:01:59]} 13. Bxb8 {[%clk 0:02:20]}  Qxb8 {[%clk 0:02:00]} 14. Rb1 {[%clk 0:02:20]}  Qc7 {[%clk 0:01:59]} 15. Qa4 {[%clk 0:02:05]}  Rb8 {[%clk 0:01:56]} 16. Qa6 {[%clk 0:02:04]}  Bc5 {[%clk 0:01:45]} 17. Nd4 {[%clk 0:01:53]}  Nd8 {[%clk 0:01:40]} 18. O-O {[%clk 0:01:47]}  Bb6 {[%clk 0:01:37]} 19. c4 {[%clk 0:01:41]}  Nxb7 {[%clk 0:01:34]} 20. cxd5 {[%clk 0:01:39]}  Nc5 {[%clk 0:01:33]} 21. Qa3 {[%clk 0:01:38]}  Nxd5 {[%clk 0:01:33]} 22. Rfc1 {[%clk 0:01:36]}  Rc8 {[%clk 0:01:22]} 23. N2b3 {[%clk 0:01:27]}  e5 {[%clk 0:01:11]} 24. Nb5 {[%clk 0:01:17]}  Bxb5 {[%clk 0:00:53]} 25. Bxb5 {[%clk 0:01:18]}  e4 {[%clk 0:00:54]} 26. Ba6 {[%clk 0:01:11]}  Nxa6 {[%clk 0:00:49]} 27. Rxc7 {[%clk 0:01:00]}  Naxc7 {[%clk 0:00:50]} 28. Rc1 {[%clk 0:00:58]}  Rd8 {[%clk 0:00:49]} 29. Nd4 {[%clk 0:00:55]}  g6 {[%clk 0:00:40]} 30. h3 {[%clk 0:00:54]}  Bxd4 {[%clk 0:00:32]} 31. exd4 {[%clk 0:00:54]}  Ne6 {[%clk 0:00:33]} 32. Qxa7 {[%clk 0:00:52]}  Ndf4 {[%clk 0:00:31]} 33. Rb1 {[%clk 0:00:50]}  Rxd4 {[%clk 0:00:29]} 34. a4 {[%clk 0:00:50]}  Ne2+ {[%clk 0:00:18]} 35. Kh1 {[%clk 0:00:49]}  Nc3 {[%clk 0:00:14]} 36. Ra1 {[%clk 0:00:48]}  e3 {[%clk 0:00:11]} 37. fxe3 {[%clk 0:00:47]}  Rd2 {[%clk 0:00:11]} 38. a5 {[%clk 0:00:41]}  Kg7 {[%clk 0:00:05]} 39. a6 {[%clk 0:00:39]}  Ne4 {[%clk 0:00:05]} 40. Qb8 {[%clk 0:00:32]}  N6g5 {[%clk 0:00:05]} 41. Qe5+ {[%clk 0:00:10]}  f6 {[%clk 0:00:05]} 42. Qc7+ {[%clk 0:00:08]}  Kh6 {[%clk 0:00:05]} 43. a7 {[%clk 0:00:07]}  Nf2+ {[%clk 0:00:04]} 44. Kg1 {[%clk 0:00:06]}  Nfxh3+ {[%clk 0:00:03]} 45. gxh3 {[%clk 0:00:06]}  Nf3+ {[%clk 0:00:03]} 46. Kh1 {[%clk 0:00:05]}  g5 {[%clk 0:00:02]} 47. a8=Q {[%clk 0:00:05]}  Nh4 {[%clk 0:00:02]} 48. Qf8+ {[%clk 0:00:05]}  Kg6 {[%clk 0:00:02]} 49. Qcg7+ {[%clk 0:00:05]}  Kf5 {[%clk 0:00:02]} 50. Qfxf6+ {[%clk 0:00:05]}  Ke4 {[%clk 0:00:03]} 51. Qe5+ {[%clk 0:00:05]}  Kf3 {[%clk 0:00:04]} 52. Qgf6+ {[%clk 0:00:06]}  Ke2 {[%clk 0:00:04]} 53. Qf1# {[%clk 0:00:04]} 1-0


[Site "https://www.chess.com"]

[Event "Titled Tuesday Blitz March 28 Early 2023"]
[White "Tatarinov, Dmitry"]
[Black "Movahed, Sina"]
[WhiteFideId "24160067"]
[BlackFideId "42520835"]
[WhiteElo "2326"]
[BlackElo "2225"]
[Result "0-1"]
[Round "05"]
[TimeControl "180+2"]
[Date "2023.03.28"]
[WhiteClock "0:01:07"]
[BlackClock "0:01:18"]

1. d4 {[%clk 0:02:59]}  Nf6 {[%clk 0:02:58]} 2. c4 {[%clk 0:02:59]}  g6 {[%clk 0:02:58]} 3. Nf3 {[%clk 0:02:59]}  Bg7 {[%clk 0:02:58]} 4. g3 {[%clk 0:02:59]}  O-O {[%clk 0:02:59]} 5. Bg2 {[%clk 0:03:00]}  d6 {[%clk 0:03:00]} 6. O-O {[%clk 0:03:00]}  Nbd7 {[%clk 0:03:00]} 7. Nc3 {[%clk 0:03:01]}  e5 {[%clk 0:03:01]} 8. e4 {[%clk 0:03:00]}  exd4 {[%clk 0:03:01]} 9. Nxd4 {[%clk 0:03:00]}  Re8 {[%clk 0:03:01]} 10. f3 {[%clk 0:03:00]}  c6 {[%clk 0:03:00]} 11. Re1 {[%clk 0:02:56]}  d5 {[%clk 0:02:59]} 12. cxd5 {[%clk 0:02:50]}  cxd5 {[%clk 0:03:00]} 13. exd5 {[%clk 0:02:46]}  Rxe1+ {[%clk 0:02:56]} 14. Qxe1 {[%clk 0:02:47]}  Nb6 {[%clk 0:02:55]} 15. Be3 {[%clk 0:02:38]}  Nbxd5 {[%clk 0:02:55]} 16. Nxd5 {[%clk 0:02:38]}  Nxd5 {[%clk 0:02:56]} 17. Bf2 {[%clk 0:02:38]}  Nf4 {[%clk 0:02:48]} 18. Rd1 {[%clk 0:02:19]}  Nxg2 {[%clk 0:02:40]} 19. Nc6 {[%clk 0:01:38]}  Qf8 {[%clk 0:02:25]} 20. Ne7+ {[%clk 0:01:30]}  Kh8 {[%clk 0:02:24]} 21. Kxg2 {[%clk 0:01:28]}  Be6 {[%clk 0:02:21]} 22. Nd5 {[%clk 0:01:25]}  Re8 {[%clk 0:02:14]} 23. Nc7 {[%clk 0:01:16]}  Bh3+ {[%clk 0:01:58]} 24. Kxh3 {[%clk 0:01:16]}  Rxe1 {[%clk 0:01:58]} 25. Rxe1 {[%clk 0:01:17]}  Qc8+ {[%clk 0:01:55]} 26. g4 {[%clk 0:01:15]}  Qxc7 {[%clk 0:01:45]} 27. Re8+ {[%clk 0:01:15]}  Bf8 {[%clk 0:01:45]} 28. Rxf8+ {[%clk 0:01:15]}  Kg7 {[%clk 0:01:46]} 29. Re8 {[%clk 0:01:13]}  Qc6 {[%clk 0:01:23]} 30. Bd4+ {[%clk 0:01:12]}  f6 {[%clk 0:01:23]} 31. Re7+ {[%clk 0:01:12]}  Kf8 {[%clk 0:01:23]} 32. Re3 {[%clk 0:01:09]}  Kf7 {[%clk 0:01:23]} 33. a3 {[%clk 0:01:08]}  h5 {[%clk 0:01:21]} 34. gxh5 {[%clk 0:01:06]}  Qd7+ {[%clk 0:01:20]} 35. Kg3 {[%clk 0:01:06]}  Qxd4 {[%clk 0:01:21]} 36. hxg6+ {[%clk 0:01:07]}  Kxg6 {[%clk 0:01:21]} 37. Rb3 {[%clk 0:01:08]}  Qe5+ {[%clk 0:01:20]} 38. Kg2 {[%clk 0:01:07]}  b5 {[%clk 0:01:19]} 39. Rb4 {[%clk 0:01:07]}  a5 {[%clk 0:01:18]} 0-1


[Site "https://www.chess.com"]

[Event "Titled Tuesday Blitz March 28 Early 2023"]
[White "Rakhmanov, Aleksandr"]
[Black "Amilal Munkhdalai"]
[WhiteFideId "4173708"]
[BlackFideId "4903250"]
[WhiteElo "2530"]
[BlackElo "2293"]
[Result "0-1"]
[Round "05"]
[TimeControl "180+2"]
[Date "2023.03.28"]
[WhiteClock "0:00:04"]
[BlackClock "0:00:06"]

1. c4 {[%clk 0:03:00]}  Nf6 {[%clk 0:02:58]} 2. Nc3 {[%clk 0:02:59]}  e6 {[%clk 0:02:57]} 3. e4 {[%clk 0:02:59]}  d5 {[%clk 0:02:57]} 4. exd5 {[%clk 0:03:00]}  exd5 {[%clk 0:02:57]} 5. d4 {[%clk 0:03:01]}  c6 {[%clk 0:02:54]} 6. Bd3 {[%clk 0:03:01]}  dxc4 {[%clk 0:02:54]} 7. Bxc4 {[%clk 0:03:01]}  Bd6 {[%clk 0:02:53]} 8. Nge2 {[%clk 0:03:02]}  h6 {[%clk 0:02:53]} 9. O-O {[%clk 0:03:02]}  O-O {[%clk 0:02:53]} 10. f3 {[%clk 0:03:03]}  Re8 {[%clk 0:02:53]} 11. Ng3 {[%clk 0:03:01]}  Be6 {[%clk 0:02:51]} 12. Bxe6 {[%clk 0:02:50]}  Rxe6 {[%clk 0:02:51]} 13. Nge4 {[%clk 0:02:50]}  Bb4 {[%clk 0:02:43]} 14. Bf4 {[%clk 0:02:33]}  Bxc3 {[%clk 0:02:36]} 15. bxc3 {[%clk 0:02:34]}  Nbd7 {[%clk 0:02:11]} 16. Rb1 {[%clk 0:02:20]}  b5 {[%clk 0:01:50]} 17. Bg3 {[%clk 0:02:15]}  Qe7 {[%clk 0:01:44]} 18. Bh4 {[%clk 0:01:59]}  g5 {[%clk 0:01:38]} 19. Bg3 {[%clk 0:01:56]}  Nd5 {[%clk 0:01:26]} 20. Qb3 {[%clk 0:01:42]}  f5 {[%clk 0:01:23]} 21. Nd2 {[%clk 0:01:42]}  N7b6 {[%clk 0:01:12]} 22. Rbe1 {[%clk 0:01:33]}  Re8 {[%clk 0:01:10]} 23. c4 {[%clk 0:01:27]}  bxc4 {[%clk 0:01:09]} 24. Nxc4 {[%clk 0:01:27]}  Nxc4 {[%clk 0:01:07]} 25. Qxc4 {[%clk 0:01:28]}  Qf7 {[%clk 0:01:06]} 26. Be5 {[%clk 0:01:07]}  Qd7 {[%clk 0:00:55]} 27. h3 {[%clk 0:01:02]}  Kh7 {[%clk 0:00:35]} 28. Rf2 {[%clk 0:00:57]}  Nf4 {[%clk 0:00:30]} 29. Rb1 {[%clk 0:00:51]}  Ng6 {[%clk 0:00:20]} 30. Rfb2 {[%clk 0:00:47]}  Qd5 {[%clk 0:00:19]} 31. Rb7+ {[%clk 0:00:39]}  R8e7 {[%clk 0:00:20]} 32. Qxd5 {[%clk 0:00:14]}  cxd5 {[%clk 0:00:19]} 33. Kf2 {[%clk 0:00:08]}  Nxe5 {[%clk 0:00:17]} 34. Rxe7+ {[%clk 0:00:08]}  Rxe7 {[%clk 0:00:17]} 35. dxe5 {[%clk 0:00:09]}  Rxe5 {[%clk 0:00:13]} 36. Rb7+ {[%clk 0:00:08]}  Kg6 {[%clk 0:00:13]} 37. Rxa7 {[%clk 0:00:09]}  d4 {[%clk 0:00:12]} 38. Ra6+ {[%clk 0:00:07]}  Kg7 {[%clk 0:00:12]} 39. Ra3 {[%clk 0:00:04]}  f4 {[%clk 0:00:11]} 40. Rd3 {[%clk 0:00:03]}  Ra5 {[%clk 0:00:10]} 41. a3 {[%clk 0:00:02]}  Kf6 {[%clk 0:00:10]} 42. Rb3 {[%clk 0:00:01]}  Ke5 {[%clk 0:00:09]} 43. Ke2 {[%clk 0:00:02]}  Ra4 {[%clk 0:00:06]} 44. Kd3 {[%clk 0:00:03]}  Kd5 {[%clk 0:00:06]} 45. Rb5+ {[%clk 0:00:03]}  Ke6 {[%clk 0:00:05]} 46. Rb6+ {[%clk 0:00:03]}  Kd5 {[%clk 0:00:05]} 47. Rb3 {[%clk 0:00:04]}  Ke5 {[%clk 0:00:04]} 48. Rb5+ {[%clk 0:00:03]}  Kd6 {[%clk 0:00:04]} 49. Rb3 {[%clk 0:00:04]}  Kd5 {[%clk 0:00:04]} 50. Kc2 {[%clk 0:00:04]}  Kc4 {[%clk 0:00:04]} 51. Rd3 {[%clk 0:00:04]}  Ra5 {[%clk 0:00:03]} 52. Rb3 {[%clk 0:00:05]}  Re5 {[%clk 0:00:03]} 53. Rb4+ {[%clk 0:00:04]}  Kc5 {[%clk 0:00:04]} 54. Kd2 {[%clk 0:00:03]}  Re3 {[%clk 0:00:04]} 55. Ra4 {[%clk 0:00:04]}  Rb3 {[%clk 0:00:04]} 56. Ra6 {[%clk 0:00:04]}  Rb2+ {[%clk 0:00:04]} 57. Kd3 {[%clk 0:00:04]}  Rb3+ {[%clk 0:00:04]} 58. Kc2 {[%clk 0:00:03]}  Re3 {[%clk 0:00:03]} 59. Kd2 {[%clk 0:00:03]}  Rb3 {[%clk 0:00:04]} 60. Rxh6 {[%clk 0:00:03]}  Rb2+ {[%clk 0:00:03]} 61. Kd3 {[%clk 0:00:04]}  Rxg2 {[%clk 0:00:04]} 62. Rh5 {[%clk 0:00:04]}  Rg3 {[%clk 0:00:04]} 63. Ke2 {[%clk 0:00:04]}  Kc4 {[%clk 0:00:03]} 64. a4 {[%clk 0:00:03]}  d3+ {[%clk 0:00:03]} 65. Kf2 {[%clk 0:00:02]}  d2 {[%clk 0:00:03]} 66. Ke2 {[%clk 0:00:02]}  Kc3 {[%clk 0:00:03]} 67. Rh8 {[%clk 0:00:01]}  Rg2+ {[%clk 0:00:03]} 68. Kf1 {[%clk 0:00:01]}  d1=Q+ {[%clk 0:00:03]} 69. Kxg2 {[%clk 0:00:02]}  Qe2+ {[%clk 0:00:03]} 70. Kg1 {[%clk 0:00:02]}  Qxf3 {[%clk 0:00:04]} 71. Kh2 {[%clk 0:00:02]}  Qf2+ {[%clk 0:00:04]} 72. Kh1 {[%clk 0:00:03]}  Qf3+ {[%clk 0:00:05]} 73. Kh2 {[%clk 0:00:04]}  Qg3+ {[%clk 0:00:05]} 74. Kh1 {[%clk 0:00:04]}  f3 {[%clk 0:00:06]} 0-1


[Site "https://www.chess.com"]